Cogmind - Beta 11.1 @@@ ROGUE MODE // 2022.05.10 @ 17:46:14 Player: Sara Result: Destroyed by as-82208 with Assembled Blade Performance ------------- Evolutions (0) 0 Regions Visited (2) 400 Robots Destroyed (26) 130 Value Destroyed (527) 527 Prototype IDs (2) 40 Alien Tech Used (0) 0 Bonus (0) 0 TOTAL SCORE: 1097 Bonus ------- None Cogmind --------- Core Integrity 0/250 Matter 275/300 Energy 100/100 System Corruption 1% Temperature Cool (20) Movement Core (350) Ox6 Location -10/Mines Parts ------- > --- POWER (1) -------- (None) > --- PROPULSION (2) --- (None) > --- UTILITY (2) ------ Large Storage Unit Targeting Computer > --- WEAPON (2) ------- (None) > --- INVENTORY (15) --- Light Ion Engine Light Treads Light Treads Light Treads Light Treads Compact Wheel Heat Sink Small Storage Unit EM Pulse Gun Small Laser Peak State ------------ > --- POWER ------------ Ion Engine > --- PROPULSION ------- Light Treads Light Treads > --- UTILITY ---------- Large Storage Unit Targeting Computer > --- WEAPON ----------- Medium Laser Small Laser > --- INVENTORY -------- Light Ion Engine Light Treads Light Treads Light Treads Light Treads Compact Wheel Heat Sink Small Storage Unit EM Pulse Gun Grenade Launcher [Rating: 8] Favorites ----------- Power Ion Engine Engine Ion Engine Propulsion Light Treads Treads Light Treads Utility Targeting Computer Storage Large Storage Unit Processor Targeting Computer Weapon Medium Laser Energy Gun Medium Laser Launcher Grenade Launcher Build | -11 -10 -10 ------- Run | Scr Mat Min Slots Evolved . | . . . Power . | . . . Propulsion . | . . . Utility . | . . . Weapon . | . . . Parts Attached 19 | 6 12 1 Power 3 | 2 1 . Engine 3 | 2 1 . Core . | . . . Reactor . | . . . Propulsion 7 | 2 5 . Treads 7 | 2 5 . Leg . | . . . Wheel . | . . . Hover . | . . . Flight . | . . . Utility 3 | 1 2 . Device . | . . . Storage 2 | 1 1 . Processor 1 | . 1 . Hackware . | . . . Protection . | . . . Artifact . | . . . Weapon 6 | 1 4 1 Energy Gun 5 | 1 4 . Energy Cannon . | . . . Ballistic Gun . | . . . Ballistic Cannon . | . . . Launcher 1 | . . 1 Special Weapon . | . . . Impact Weapon . | . . . Slashing Weapon . | . . . Piercing Weapon . | . . . Special Melee Weapon . | . . . Unidentified Prototypes . | . . . Corrupted Parts 1 | . 1 . System Corruption 1 | . 1 . Parts Lost 5 | . . 5 Power 1 | . . 1 Propulsion 2 | . . 2 Utility . | . . . Weapon 2 | . . 2 Highest Loss Streak 5 | . . 5 To Critical Strikes . | . . . Average Slot Usage (%) 98 | . 98 98 Engine 13 | . 14 13 Treads 27 | . 27 27 Storage 14 | . 14 14 Processor 12 | . 12 14 Energy Gun 25 | . 27 18 Launcher 2 | . . 9 Naked Turns . | . . . Heaviest Build 30 | 12 28 30 Greatest Support 40 | 40 40 40 Greatest Overweight (x) 1 | . 1 . Average Overweight (x) . | . . . Largest Inventory Capacity 15 | 8 15 15 Average Capacity 11 | 6 10 15 Most Carried 10 | 8 9 10 Average Carried 8 | 4 7 9 Final Capacity 15 | 8 15 15 Final Carried 10 | 7 9 10 Class Distribution -------------------- 100% | Mutant Dominant Class ---------------- Mutant | -10/Materials Mutant | -10/Mines Resources | -11 -10 -10 ----------- Run | Scr Mat Min Matter Collected 378 | 186 168 24 Remotely . | . . . Salvage Created 760 | . 677 83 Parts 56 | . 52 4 Haulers Intercepted 1 | . 1 . Recyclers Shooed 1 | . 1 . Parts Field Recycled . | . . . Retrieved Matter . | . . . Parts Self-Destructed . | . . . Prevented . | . . . Kills | -11 -10 -10 ------- Run | Scr Mat Min Combat Hostiles Destroyed 23 | . 14 9 Guns 13 | . 13 . AOE 10 | . 1 9 Classes Destroyed 9 | . 8 1 Worker 1 | . 1 . Hauler 1 | . 1 . Recycler 2 | . 1 1 Mechanic 1 | . 1 . Operator 1 | . 1 . Watcher 3 | . 3 . Swarmer 9 | . 6 3 Grunt 8 | . 8 . Assembled 6 | . . 6 Best Kill Streak 6 | . 3 6 Combat Bots Only 6 | . 3 6 Max Kills in Single Turn 2 | . 2 2 Gunslinging . | . . . Exploded 2 | . 1 2 Melee . | . . . Uniques/NPCs Destroyed . | . . . Combat | -11 -10 -10 -------- Run | Scr Mat Min Damage Taken 824 | . 514 310 Core 263 | . 142 121 Absorbed by Shields . | . . . Core Remaining (%) 100 | 100 . . Volleys Fired 60 | . 52 8 Largest 2 | . 2 1 Hottest 90 | . 90 30 Shots Fired 110 | . 102 8 Gun 102 | . 102 . Cannon . | . . . Launcher 8 | . . 8 Special . | . . . Kinetic . | . . . Thermal 66 | . 66 . Explosive 8 | . . 8 Electromagnetic 36 | . 36 . Robot Hit Streak 8 | . 8 1 Robot Miss Streak 3 | . 3 2 Penetration Max . | . . . Secondary Targets . | . . . Shots Hit Robots 62 | . 61 1 Core Hits 51 | . 34 17 Critical Kills . | . . . Critical Parts Destroyed . | . . . Critical Strikes 5 | . 5 . Burn 2 | . 2 . Corrupt 3 | . 3 . Melee Attacks . | . . . Impact . | . . . Slashing . | . . . Piercing . | . . . Sneak Attacks . | . . . Combat Hostiles . | . . . Follow-up Attacks . | . . . Damage Inflicted 1490 | 3 888 599 Guns 807 | . 807 . Cannons . | . . . Explosions 604 | . 59 545 Melee . | . . . Ramming 79 | 3 22 54 Kinetic . | . . . Thermal 502 | . 502 . Explosive 545 | . . 545 Electromagnetic 364 | . 364 . Impact . | . . . Slashing . | . . . Piercing . | . . . Highest Corruption 1 | . 1 1 Average Corruption 1 | . 1 1 Corruption Purged . | . . . Corruption Blocked . | . . . Effects 2 | . 1 1 Matter Fused 1 | . 1 . Heat Flow Errors 1 | . . 1 Overload Shots . | . . . Overflow Damage 94 | . . 94 Projectiles . | . . . Explosions 94 | . . 94 Melee . | . . . Knockbacks 1 | . . 1 Impact 1 | . . 1 Kinetic . | . . . Secondary . | . . . Self-Inflicted Damage 120 | . 31 89 Shots 4 | . 1 3 Rammed 21 | 2 9 10 Targets Rammed 24 | 2 11 11 Kicked . | . . . Crushed 3 | . 2 1 Highest Temperature 360 | . 360 218 Average Temperature 81 | . 81 80 Received Heat Transfer 280 | . 180 100 Effects 2 | . 2 . Shutdowns 1 | . 1 . Interference 1 | . 1 . Siege Activations . | . . . Robots Corrupted . | . . . Combat Hostiles . | . . . Parts Fried 1 | . 1 . Impact Corruptions . | . . . Robots Melted . | . . . Combat Hostiles . | . . . Parts Melted 3 | . 3 . Heat Transferred 1472 | . 1472 . Parts Sabotaged . | . . . Parts Stolen . | . . . Parts Stripped . | . . . Power Chain Reactions 1 | . 1 . Missiles Intercepted . | . . . Alert | -11 -10 -10 ------- Run | Scr Mat Min Peak Influence 218 | . 197 218 Initial 34 | . . 34 Average 74 | . 79 78 Maximum Alert Level 1 | . . 1 Low Security (%) 96 | 100 100 88 Level 1 3 | . . 11 Level 2 . | . . . Level 3 . | . . . Level 4 . | . . . Level 5 . | . . . High Security . | . . . Max Security . | . . . Squads Dispatched 4 | . 4 . Investigation 3 | . 3 . Extermination . | . . . Reinforcement 1 | . 1 . Assault . | . . . Garrison . | . . . Intercept . | . . . Searches Triggered . | . . . Construction Impeded . | . . . Haulers Reinforced . | . . . Active Scanning Responses . | . . . Cargo Convoy Interrupts . | . . . Stealth | -11 -10 -10 --------- Run | Scr Mat Min Distress Signals 1 | . 1 . Communications Jammed . | . . . Distress Signals . | . . . Times Spotted 38 | . 26 12 Peak Tracking Total 9 | . 3 9 Tactical Retreats . | . . . Traps | -11 -10 -10 ------- Run | Scr Mat Min Traps Triggered 5 | . 5 . Indirectly . | . . . Trap Hack Attempts . | . . . Triggered . | . . . Disarmed . | . . . Reprogrammed . | . . . Reused . | . . . Traps Extracted . | . . . Installed . | . . . Triggered . | . . . Machines | -11 -10 -10 ---------- Run | Scr Mat Min Machines Disabled 6 | . 1 5 Max in Single Turn 4 | . 1 4 Machines Sabotaged . | . . . Garrisons Compromised . | . . . Overloaded Fab Kills . | . . . Hacking | -11 -10 -10 --------- Run | Scr Mat Min Machines Accessed 8 | . 8 . Terminals 7 | . 7 . Fabricators . | . . . Repair Stations . | . . . Recycling Units 1 | . 1 . Scanalyzers . | . . . Garrison Access . | . . . Total Hacks 27 | . 27 . Successful 16 | . 16 . Failed 10 | . 10 . Catastrophic 2 | . 2 . Database Lockouts 1 | . 1 . Manual 9 | . 9 . Terminals 24 | . 24 . Fabricators . | . . . Repair Stations . | . . . Recycling Units 3 | . 3 . Scanalyzers . | . . . Garrison Access . | . . . Terminal Hacks 12 | . 12 . Robot Analysis 1 | . 1 . Prototype ID Bank 1 | . 1 . Branch Access Points 1 | . 1 . Emergency Access Points 1 | . 1 . Terminal Index 1 | . 1 . Unreport Threat 1 | . 1 . Locate Traps 1 | . 1 . Maintenance Status 1 | . 1 . Security Status 1 | . 1 . Registered Components 1 | . 1 . Zone Layout 2 | . 2 . Fabricator Hacks . | . . . Repair Station Hacks . | . . . Recycling Unit Hacks 2 | . 2 . Retrieve Matter 1 | . 1 . Retrieve Components 1 | . 1 . Scanalyzer . | . . . Garrison Access Hacks . | . . . Unauthorized Hacks 2 | . 2 . Terminals 1 | . 1 . Botnet 1 | . 1 . Fabricators . | . . . Repair Stations . | . . . Recycling Units 1 | . 1 . Reject 1 | . 1 . Scanalyzers . | . . . Garrison Access . | . . . Data Cores Recovered . | . . . Used . | . . . Hacking Detections 6 | . 6 . Full Trace Events . | . . . Feedback Events . | . . . Feedback Blocked . | . . . Robot Schematics Acquired . | . . . Robots Built . | . . . Authchips . | . . . Time . | . . . Total Robot Build Rating . | . . . Part Schematics Acquired . | . . . Parts Built . | . . . Authchips . | . . . Time . | . . . Total Part Build Rating . | . . . Parts Repaired . | . . . Time . | . . . Parts Recycled . | . . . Recycled Matter . | . . . Retrieved Matter 114 | . 114 . Retrieved Components 9 | . 9 . Parts Scanalyzed . | . . . Part Schematics Acquired . | . . . Parts Damaged . | . . . Bothacking | -11 -10 -10 ------------ Run | Scr Mat Min Used RIF Installer . | . . . Robots Hacked . | . . . Non-combat . | . . . Combat . | . . . Robot Hacks Applied . | . . . Relay Couplers Released . | . . . Fabnet Peak Effective % . | . . . Robots Rewired . | . . . Allies Hacked . | . . . Hacks Repelled . | . . . Allies | -11 -10 -10 -------- Run | Scr Mat Min Total Allies 1 | . . 1 Largest Group 1 | . . 1 Highest-Rated Group 31 | . . 31 Highest-Rated Ally 31 | . . 31 Total Orders . | . . . Ally Attacks 5 | . . 5 Total Damage 63 | . . 63 Kills . | . . . Allies Corrupted . | . . . Allies Melted 1 | . . 1 Intel | -11 -10 -10 ------- Run | Scr Mat Min Robot Analysis Total 1 | . 1 . Derelict Logs Recovered . | . . . Drone Launches . | . . . Drone Recoveries . | . . . Exploration | -11 -10 -10 ------------- Run | Scr Mat Min Turns Passed 2069 | 123 1395 551 Spaces Moved 1093 | 65 708 320 Core 1 | 1 . . Treads 1092 | 64 708 320 Legs . | . . . Wheels . | . . . Hover . | . . . Flight . | . . . Fastest Speed 50 | 50 160 160 Average Speed 159 | 158 160 160 Slowest Speed 240 | 160 240 160 Overloaded Moves . | . . . Propulsion Burnouts . | . . . Robots Hopped . | . . . Cave-ins Triggered . | . . . Exploration Rate (%) 61 | 4 94 87 Regions Visited 2 Branch Regions 1 Pre-discovered Areas . | . . . Known Exits Taken 1 | . 1 . Unknown Exits Taken 1 | 1 . . Scrap Searched 1 | . . 1 Spaces Dug 5 | . . 5 Terrain Destroyed 45 | . 3 42 Melee . | . . . Projectile . | . . . AOE 45 | . 3 42 Terrain Rammed . | . . . Walls Destroyed . | . . . Machines Disabled . | . . . Actions | -11 -10 -10 --------- Run | Scr Mat Min Total 1285 | 83 857 345 Wait 72 | . 68 4 Move 1091 | 64 707 320 Hop . | . . . Pick Up 14 | 9 4 1 Fast Attach 10 | 5 5 . Attach 2 | 1 1 . Detach . | . . . Swap 7 | . 6 1 Drop 5 | 2 3 . Fire 60 | . 52 8 Melee . | . . . Ram . | . . . Kick . | . . . Crush 24 | 2 11 11 Escape Stasis . | . . . Rewire . | . . . Trap . | . . . Miscellaneous . | . . . Route ------- -11/Scrapyard -10/Materials (discovered 4 exits: [*Mat x3] / *Min) -10/Mines (discovered 2 exits: [*Mat x2]) History --------- Turn | Location | Event 33 | -11/Scrapyard | Discovered new exit (range 15) 124 | -11/Scrapyard | Entered Materials 305 | -10/Materials | Build established: Mutant 340 | -10/Materials | Discovered new exit (range 14) 343 | -10/Materials | Central database locked down 479 | -10/Materials | Discovered new exit (range 15) 1074 | -10/Materials | Discovered new exit (range 9) 1092 | -10/Materials | Core integrity fell below 50% 1236 | -10/Materials | Discovered new exit (range 16) 1313 | -10/Materials | Identified exit to Mines 1519 | -10/Materials | Entered Mines 1661 | -10/Mines | Discovered new exit (range 14) 1696 | -10/Mines | YI-UF0 nonchalantly dropped a Grenade Launcher on the ground 1801 | -10/Mines | Discovered new exit (range 5) 1805 | -10/Mines | Received a Mining Laser from a helpful Derelict 1976 | -10/Mines | Assembled infested the area 2067 | -10/Mines | Core integrity fell below 20% 2070 | -10/Mines | Destroyed by as-82208 with Assembled Blade Last Messages --------------- 01976_ ALERT: Infestation in the mines, dispatching Demolisher response squad. 01988_ Slammed into T-07 Excavator. 02062_ Destroyed Asb. F-torch. 02062_ Destroyed Asb. Hover Unit. 02062_ as-80207 destroyed. 02066_ as-93487 destroyed. 02066_ Ion Engine destroyed. 02066_ Destroyed Ion Engine. 02066_ Lgt. Treads destroyed. 02066_ Destroyed Lgt. Treads. 02066_ Med. Laser destroyed. 02068_ Destroyed Asb. Hover Unit. 02068_ as-97775 destroyed. 02068_ Destroyed Asb. Hover Unit. 02068_ as-59673 destroyed. 02068_ Lgt. Treads destroyed. 02070_ as-58936 destroyed. 02070_ as-78396 destroyed. 02070_ Grenade Launcher destroyed. Map ----- +----------------------------------------------------+ | | | | | | | | | | | | | | | | | | | | | | | | | | | ????????????????????????????????????????? | | ???#############????????????????????????? | | ???# #????????????????????????? | | ???# ####?????????????????????? | | ???# """ """ #?????????????????????? | | ???# """ """ ## #########?????????????? | | ???# """ """ ## #?????????????? | | ???# ## ####### #?????????????? | | ???####### ###### #?????# #??????###????? | | ?????????# #????# #?????# #?????# ###??? | | ?????????# #????# #????## #????# ##?? | | ???????###%####?# #????# ##??? #?? | | ??????## # ### #????# @ #?? #?? | | ??????# ## #????# a #?# #??? | | ??????# ## #???# # #??? | | ####??### ##? ????# % #??? | | #????## ##?? ???? a a #??? | | #?????# ###???#???# # %% #??? | | # ####### ##????????# ## #??? | | # #????????#??#### ##??? | | # #????????????? * ###???? | | ######## #???????????? #?????? | | ???????# ????????? ##?????? | | ??????? """ #?????? " #??????? | | ??????# """ #### ?????? ??????? | | ??????# """ #??? ????? #?????? | | ??????## #????# ??? # ##?????? | | ???????#### #?????????##? ###??????? | | ???????????# ##???????????? #????????? | | ?????????????###????????????? #????????? | | ????????????????????????????? #????????? | | ????????????????????????????? ?????????? | | ???????###??????????????????????????????? | | ###???# ##?????????????????????????????? | | # ##?? #?????????????????????????????? | | #?# #?????????????????????????????? | | ## #??????????????????????????????? | +----------------------------------------------------+ Best States ------------- Heat Dissipation 25 Energy Generation 10 Energy Capacity 250 Matter Stores 300 Matter Capacity 300 Sight Range 16 Terrain Scan Density 10 Evasion (%) 40 Targeting Accuracy 5 Recoil Reduction 2 Item Schematics ----------------- None Robot Schematics ------------------ None Fabricated ------------ Nothing Alien Tech Used ----------------- None Achievements -------------- None Challenges ------------ None Game ------ Seed SalvageBombDatajack Manual? 0 Play Time 00:15:19 Cumulative 101.4 hours Start 2022.05.10 @ 17:33:22 End 2022.05.10 @ 17:46:14 Sessions 1 Manual Loads 0 Difficulty Rogue Special Mode None Game No. 130 Rogue 130 Adventurer 0 Explorer 0 Win Type - Total 1 Types 1/0/0/0/0/0/0/0/0 Lore% 58 Gallery% 55 Achievement% 48 Wizard Run 0 Options --------- ASCII 0 Keyboard 0 Movement Numpad Keybinds 0 Fullscreen 1 Font 18/X11Bold Map View 76x50 Tactical HUD 1 Map Filters NONE Filters NONE Steam X RUN: a137e0f6-ede1-4ce8-9b3d-8681f44cf793